[Event "Titled Tuesday Blitz April 26 Early 2022"]
[White "Wachinger, Guenther"]
[Black "Stribuk, Artiom"]
[WhiteFideId "4604261"]
[BlackFideId "13515659"]
[WhiteElo "2212"]
[BlackElo "2259"]
[Result "0-1"]
[Round "01"]
[TimeControl "180+1"]
[Date "2022.04.26"]
[WhiteClock "0:01:35"]
[BlackClock "0:01:25"]

1. e4 {[%clk 0:02:56]}  c5 {[%clk 0:02:57]} 2. Nf3 {[%clk 0:02:56]}  Nc6 {[%clk 0:02:58]} 3. d4 {[%clk 0:02:57]}  cxd4 {[%clk 0:02:59]} 4. Nxd4 {[%clk 0:02:57]}  Nf6 {[%clk 0:02:59]} 5. Nc3 {[%clk 0:02:58]}  e5 {[%clk 0:03:00]} 6. Ndb5 {[%clk 0:02:58]}  d6 {[%clk 0:03:00]} 7. Bg5 {[%clk 0:02:59]}  a6 {[%clk 0:03:00]} 8. Na3 {[%clk 0:02:59]}  b5 {[%clk 0:03:00]} 9. Nd5 {[%clk 0:03:00]}  Be7 {[%clk 0:03:00]} 10. Bxf6 {[%clk 0:03:01]}  Bxf6 {[%clk 0:03:01]} 11. c4 {[%clk 0:03:01]}  b4 {[%clk 0:03:01]} 12. Nc2 {[%clk 0:03:01]}  O-O {[%clk 0:03:01]} 13. Qf3 {[%clk 0:02:56]}  Bg5 {[%clk 0:02:58]} 14. h4 {[%clk 0:02:57]}  Bh6 {[%clk 0:02:58]} 15. g4 {[%clk 0:02:57]}  Bf4 {[%clk 0:02:58]} 16. Nxf4 {[%clk 0:02:54]}  Qf6 {[%clk 0:02:58]} 17. g5 {[%clk 0:02:50]}  Qxf4 {[%clk 0:02:54]} 18. Qxf4 {[%clk 0:02:50]}  exf4 {[%clk 0:02:54]} 19. O-O-O {[%clk 0:02:44]}  Bg4 {[%clk 0:02:31]} 20. Rxd6 {[%clk 0:02:37]}  Bf3 {[%clk 0:02:30]} 21. Rg1 {[%clk 0:02:10]}  Bxe4 {[%clk 0:02:29]} 22. Bg2 {[%clk 0:02:09]}  Bxg2 {[%clk 0:01:44]} 23. Rxg2 {[%clk 0:02:10]}  Ne5 {[%clk 0:01:45]} 24. Nxb4 {[%clk 0:02:07]}  Nxc4 {[%clk 0:01:41]} 25. Rd4 {[%clk 0:02:00]}  Rfc8 {[%clk 0:01:30]} 26. Kb1 {[%clk 0:01:46]}  Rab8 {[%clk 0:01:26]} 27. Nd3 {[%clk 0:01:35]}  Na3+ {[%clk 0:01:25]} 0-1


[Site "https://www.chess.com"]

[Event "Titled Tuesday Blitz April 26 Early 2022"]
[White "Xu, Yi"]
[Black "Miszler, Levente"]
[WhiteFideId "8605564"]
[BlackFideId "763276"]
[WhiteElo "2471"]
[BlackElo "1966"]
[Result "1-0"]
[Round "01"]
[TimeControl "180+1"]
[Date "2022.04.26"]
[WhiteClock "0:00:39"]
[BlackClock "0:01:03"]

1. e4 {[%clk 0:02:31]}  e6 {[%clk 0:02:58]} 2. d4 {[%clk 0:02:31]}  d5 {[%clk 0:02:57]} 3. e5 {[%clk 0:02:30]}  c5 {[%clk 0:02:57]} 4. c3 {[%clk 0:02:29]}  Nc6 {[%clk 0:02:58]} 5. Nf3 {[%clk 0:02:25]}  Bd7 {[%clk 0:02:57]} 6. Be2 {[%clk 0:02:24]}  f6 {[%clk 0:02:56]} 7. Bf4 {[%clk 0:02:21]}  fxe5 {[%clk 0:02:51]} 8. Nxe5 {[%clk 0:02:19]}  Nxe5 {[%clk 0:02:51]} 9. Bxe5 {[%clk 0:02:15]}  Nf6 {[%clk 0:02:49]} 10. O-O {[%clk 0:02:13]}  Be7 {[%clk 0:02:48]} 11. Nd2 {[%clk 0:01:57]}  O-O {[%clk 0:02:46]} 12. Nf3 {[%clk 0:01:55]}  Be8 {[%clk 0:02:19]} 13. Ng5 {[%clk 0:01:52]}  Qb6 {[%clk 0:02:17]} 14. dxc5 {[%clk 0:01:32]}  Bxc5 {[%clk 0:02:16]} 15. b4 {[%clk 0:01:32]}  Bd6 {[%clk 0:02:10]} 16. Bd4 {[%clk 0:01:29]}  Qc6 {[%clk 0:01:46]} 17. Nxe6 {[%clk 0:01:29]}  Bxh2+ {[%clk 0:01:41]} 18. Kxh2 {[%clk 0:01:30]}  Qxe6 {[%clk 0:01:41]} 19. Kg1 {[%clk 0:01:27]}  Ne4 {[%clk 0:01:36]} 20. Rc1 {[%clk 0:01:20]}  Bg6 {[%clk 0:01:36]} 21. c4 {[%clk 0:01:17]}  Rac8 {[%clk 0:01:32]} 22. cxd5 {[%clk 0:01:03]}  Qxd5 {[%clk 0:01:30]} 23. Bxa7 {[%clk 0:01:03]}  Qxd1 {[%clk 0:01:23]} 24. Rfxd1 {[%clk 0:00:57]}  Nc3 {[%clk 0:01:22]} 25. Bg4 {[%clk 0:00:57]}  Ra8 {[%clk 0:01:11]} 26. Rxc3 {[%clk 0:00:53]}  Rxa7 {[%clk 0:01:11]} 27. Rd7 {[%clk 0:00:48]}  Rxa2 {[%clk 0:01:07]} 28. Be6+ {[%clk 0:00:47]}  Bf7 {[%clk 0:01:05]} 29. Rxf7 {[%clk 0:00:39]}  Ra1+ {[%clk 0:01:04]} 30. Kh2 {[%clk 0:00:39]}  Rxf7 {[%clk 0:01:03]} 31. Rc8# {[%clk 0:00:39]} 1-0


[Site "https://www.chess.com"]

[Event "Titled Tuesday Blitz April 26 Early 2022"]
[White "Zanette, Edgard Vinicius"]
[Black "Salimova, Nurgyul"]
[WhiteFideId "2109263"]
[BlackFideId "2915138"]
[WhiteElo "2182"]
[BlackElo "2185"]
[Result "0-1"]
[Round "01"]
[TimeControl "180+1"]
[Date "2022.04.26"]
[WhiteClock "0:00:08"]
[BlackClock "0:00:12"]

1. e4 {[%clk 0:03:00]}  c6 {[%clk 0:02:59]} 2. d4 {[%clk 0:02:59]}  d5 {[%clk 0:02:58]} 3. e5 {[%clk 0:02:59]}  Bf5 {[%clk 0:02:57]} 4. h4 {[%clk 0:02:55]}  Qb6 {[%clk 0:02:56]} 5. c3 {[%clk 0:02:33]}  Nd7 {[%clk 0:02:35]} 6. Nd2 {[%clk 0:02:26]}  h5 {[%clk 0:02:31]} 7. Be2 {[%clk 0:02:19]}  c5 {[%clk 0:02:30]} 8. Nb3 {[%clk 0:02:14]}  e6 {[%clk 0:02:24]} 9. Bxh5 {[%clk 0:02:09]}  cxd4 {[%clk 0:02:21]} 10. cxd4 {[%clk 0:02:06]}  Bb4+ {[%clk 0:02:20]} 11. Kf1 {[%clk 0:01:59]}  Rc8 {[%clk 0:02:05]} 12. Be3 {[%clk 0:01:20]}  Rxh5 {[%clk 0:01:30]} 13. Qxh5 {[%clk 0:01:19]}  Bd3+ {[%clk 0:01:30]} 14. Ne2 {[%clk 0:01:18]}  Rc2 {[%clk 0:01:31]} 15. Nc1 {[%clk 0:01:15]}  Bxe2+ {[%clk 0:00:48]} 16. Nxe2 {[%clk 0:01:15]}  Ne7 {[%clk 0:00:45]} 17. a3 {[%clk 0:01:02]}  Bd2 {[%clk 0:00:42]} 18. Bxd2 {[%clk 0:00:58]}  Rxd2 {[%clk 0:00:42]} 19. b4 {[%clk 0:00:49]}  Qb5 {[%clk 0:00:38]} 20. Rh3 {[%clk 0:00:40]}  Nf5 {[%clk 0:00:37]} 21. Qh8+ {[%clk 0:00:31]}  Nf8 {[%clk 0:00:30]} 22. Qh5 {[%clk 0:00:28]}  Nxd4 {[%clk 0:00:25]} 23. Re1 {[%clk 0:00:20]}  Nxe2 {[%clk 0:00:19]} 24. Qxe2 {[%clk 0:00:14]}  Rxe2 {[%clk 0:00:19]} 25. Rxe2 {[%clk 0:00:15]}  Qc4 {[%clk 0:00:17]} 26. Re3 {[%clk 0:00:13]}  Qxh4 {[%clk 0:00:16]} 27. f3 {[%clk 0:00:12]}  Qh1+ {[%clk 0:00:15]} 28. Kf2 {[%clk 0:00:13]}  Qh4+ {[%clk 0:00:15]} 29. Kg1 {[%clk 0:00:12]}  Qd4 {[%clk 0:00:15]} 30. Kf1 {[%clk 0:00:12]}  Nd7 {[%clk 0:00:15]} 31. f4 {[%clk 0:00:10]}  Nb6 {[%clk 0:00:14]} 32. g3 {[%clk 0:00:10]}  Nc4 {[%clk 0:00:15]} 33. Rf3 {[%clk 0:00:10]}  Qd1+ {[%clk 0:00:14]} 34. Kf2 {[%clk 0:00:10]}  Qh1 {[%clk 0:00:14]} 35. g4 {[%clk 0:00:08]}  Qh2+ {[%clk 0:00:13]} 36. Ke1 {[%clk 0:00:08]}  Qg1+ {[%clk 0:00:14]} 37. Rf1 {[%clk 0:00:09]}  Qg3+ {[%clk 0:00:14]} 38. Kd1 {[%clk 0:00:09]}  Ne3+ {[%clk 0:00:12]} 39. Rxe3 {[%clk 0:00:08]}  Qxe3 {[%clk 0:00:12]} 40. Re1 {[%clk 0:00:08]}  Qxa3 {[%clk 0:00:12]} 0-1


[Site "https://www.chess.com"]

[Event "Titled Tuesday Blitz April 26 Early 2022"]
[White "Zia, Tahsin Tajwar"]
[Black "Bortnyk, Olexandr"]
[WhiteFideId "10211888"]
[BlackFideId "14120828"]
[WhiteElo "1800"]
[BlackElo "2723"]
[Result "0-1"]
[Round "01"]
[TimeControl "180+1"]
[Date "2022.04.26"]
[WhiteClock "0:01:51"]
[BlackClock "0:02:50"]

1. d4 {[%clk 0:03:00]}  d6 {[%clk 0:02:59]} 2. Nf3 {[%clk 0:02:59]}  Nf6 {[%clk 0:02:59]} 3. g3 {[%clk 0:02:55]}  g6 {[%clk 0:02:59]} 4. Bg2 {[%clk 0:02:49]}  Bg7 {[%clk 0:03:00]} 5. c4 {[%clk 0:02:49]}  O-O {[%clk 0:02:59]} 6. O-O {[%clk 0:02:44]}  Bf5 {[%clk 0:03:00]} 7. Nc3 {[%clk 0:02:43]}  Ne4 {[%clk 0:03:00]} 8. Nh4 {[%clk 0:02:37]}  Nxc3 {[%clk 0:03:00]} 9. bxc3 {[%clk 0:02:35]}  Bc8 {[%clk 0:03:01]} 10. Qb3 {[%clk 0:02:33]}  Nc6 {[%clk 0:03:00]} 11. a4 {[%clk 0:02:24]}  Na5 {[%clk 0:03:00]} 12. Qb4 {[%clk 0:02:19]}  c5 {[%clk 0:02:59]} 13. dxc5 {[%clk 0:02:17]}  dxc5 {[%clk 0:03:00]} 14. Qxc5 {[%clk 0:02:17]}  Nb3 {[%clk 0:02:59]} 15. Qa3 {[%clk 0:02:17]}  Nxa1 {[%clk 0:02:59]} 16. Qxa1 {[%clk 0:02:17]}  Qa5 {[%clk 0:02:58]} 17. Bb2 {[%clk 0:02:09]}  Rd8 {[%clk 0:02:58]} 18. Qc1 {[%clk 0:02:07]}  Qxa4 {[%clk 0:02:57]} 19. Bd5 {[%clk 0:02:01]}  e6 {[%clk 0:02:54]} 20. Be4 {[%clk 0:01:55]}  Qxc4 {[%clk 0:02:52]} 21. f3 {[%clk 0:01:55]}  Qxe2 {[%clk 0:02:51]} 22. Qg5 {[%clk 0:01:51]}  Rd2 {[%clk 0:02:50]} 0-1


[Site "https://www.chess.com"]

[Event "Titled Tuesday Blitz April 26 Early 2022"]
[White "Zlatin, Alexander"]
[Black "Bacrot, Etienne"]
[WhiteFideId "2810549"]
[BlackFideId "605506"]
[WhiteElo "2228"]
[BlackElo "2673"]
[Result "0-1"]
[Round "01"]
[TimeControl "180+1"]
[Date "2022.04.26"]
[WhiteClock "0:00:04"]
[BlackClock "0:00:16"]

1. d4 {[%clk 0:03:00]}  Nf6 {[%clk 0:02:59]} 2. Nc3 {[%clk 0:02:57]}  e6 {[%clk 0:02:57]} 3. Bf4 {[%clk 0:02:55]}  Bb4 {[%clk 0:02:56]} 4. e3 {[%clk 0:02:55]}  Nd5 {[%clk 0:02:55]} 5. Ne2 {[%clk 0:02:52]}  O-O {[%clk 0:02:51]} 6. g3 {[%clk 0:02:49]}  b6 {[%clk 0:02:50]} 7. e4 {[%clk 0:02:27]}  Nxf4 {[%clk 0:02:46]} 8. Nxf4 {[%clk 0:02:25]}  Nc6 {[%clk 0:02:37]} 9. Bg2 {[%clk 0:02:20]}  Ba6 {[%clk 0:02:36]} 10. Ne2 {[%clk 0:02:16]}  Bxe2 {[%clk 0:02:25]} 11. Kxe2 {[%clk 0:02:13]}  d5 {[%clk 0:02:18]} 12. a3 {[%clk 0:01:54]}  Bxc3 {[%clk 0:02:13]} 13. bxc3 {[%clk 0:01:54]}  Rc8 {[%clk 0:02:02]} 14. Re1 {[%clk 0:01:52]}  Na5 {[%clk 0:01:58]} 15. Kf1 {[%clk 0:01:50]}  c5 {[%clk 0:01:54]} 16. exd5 {[%clk 0:01:44]}  exd5 {[%clk 0:01:54]} 17. dxc5 {[%clk 0:01:26]}  Rxc5 {[%clk 0:01:52]} 18. Qd3 {[%clk 0:01:18]}  Qf6 {[%clk 0:01:44]} 19. Re3 {[%clk 0:01:07]}  Nc4 {[%clk 0:01:40]} 20. Rf3 {[%clk 0:01:04]}  Qh6 {[%clk 0:01:25]} 21. Rf5 {[%clk 0:00:50]}  Qxh2 {[%clk 0:01:12]} 22. Rxd5 {[%clk 0:00:44]}  Ne5 {[%clk 0:01:08]} 23. Qe3 {[%clk 0:00:30]}  Ng4 {[%clk 0:01:01]} 24. Qe2 {[%clk 0:00:20]}  Rxd5 {[%clk 0:00:49]} 25. Bxd5 {[%clk 0:00:20]}  Qh5 {[%clk 0:00:48]} 26. Bf3 {[%clk 0:00:14]}  Nh2+ {[%clk 0:00:46]} 27. Kg2 {[%clk 0:00:14]}  Qxf3+ {[%clk 0:00:47]} 28. Qxf3 {[%clk 0:00:15]}  Nxf3 {[%clk 0:00:47]} 29. Kxf3 {[%clk 0:00:16]}  Rc8 {[%clk 0:00:47]} 30. Rd1 {[%clk 0:00:13]}  Rxc3+ {[%clk 0:00:45]} 31. Kg2 {[%clk 0:00:13]}  g6 {[%clk 0:00:45]} 32. Rd8+ {[%clk 0:00:12]}  Kg7 {[%clk 0:00:45]} 33. a4 {[%clk 0:00:08]}  Rc4 {[%clk 0:00:42]} 34. a5 {[%clk 0:00:06]}  bxa5 {[%clk 0:00:42]} 35. Rd5 {[%clk 0:00:04]}  Rxc2 {[%clk 0:00:40]} 36. Rxa5 {[%clk 0:00:04]}  Rc7 {[%clk 0:00:40]} 37. Ra6 {[%clk 0:00:05]}  h5 {[%clk 0:00:40]} 38. Kh3 {[%clk 0:00:06]}  Kf8 {[%clk 0:00:39]} 39. f4 {[%clk 0:00:06]}  Ke8 {[%clk 0:00:39]} 40. Kh4 {[%clk 0:00:07]}  Kd8 {[%clk 0:00:39]} 41. Kg5 {[%clk 0:00:07]}  Kc8 {[%clk 0:00:35]} 42. Kh6 {[%clk 0:00:07]}  Kb7 {[%clk 0:00:32]} 43. Ra3 {[%clk 0:00:07]}  Rc5 {[%clk 0:00:29]} 44. Kg7 {[%clk 0:00:07]}  Rf5 {[%clk 0:00:29]} 45. Re3 {[%clk 0:00:05]}  a5 {[%clk 0:00:22]} 46. Re7+ {[%clk 0:00:06]}  Kc6 {[%clk 0:00:22]} 47. Ra7 {[%clk 0:00:04]}  Kb6 {[%clk 0:00:20]} 48. Ra8 {[%clk 0:00:04]}  Kb5 {[%clk 0:00:20]} 49. Kh6 {[%clk 0:00:03]}  a4 {[%clk 0:00:19]} 50. Kg7 {[%clk 0:00:03]}  Kb4 {[%clk 0:00:19]} 51. Ra7 {[%clk 0:00:03]}  a3 {[%clk 0:00:19]} 52. Kf8 {[%clk 0:00:04]}  Kb3 {[%clk 0:00:17]} 53. Ke7 {[%clk 0:00:04]}  a2 {[%clk 0:00:17]} 54. Kd6 {[%clk 0:00:04]}  h4 {[%clk 0:00:17]} 55. gxh4 {[%clk 0:00:03]}  Rxf4 {[%clk 0:00:17]} 56. Rb7+ {[%clk 0:00:04]}  Rb4 {[%clk 0:00:17]} 57. Ra7 {[%clk 0:00:04]}  Ra4 {[%clk 0:00:16]} 0-1


[Site "https://www.chess.com"]

[Event "Titled Tuesday Blitz April 26 Early 2022"]
[White "Akrakan"]
[Black "Wachinger, Guenther"]
[BlackFideId "4604261"]
[WhiteElo "2044"]
[BlackElo "2212"]
[Result "0-1"]
[Round "02"]
[TimeControl "180+1"]
[Date "2022.04.26"]
[WhiteClock "0:01:36"]
[BlackClock "0:01:47"]

1. e4 {[%clk 0:03:00]}  c5 {[%clk 0:03:00]} 2. Nf3 {[%clk 0:03:00]}  d6 {[%clk 0:03:00]} 3. c3 {[%clk 0:03:00]}  Nf6 {[%clk 0:03:00]} 4. Qc2 {[%clk 0:03:01]}  g6 {[%clk 0:03:01]} 5. d4 {[%clk 0:03:01]}  cxd4 {[%clk 0:03:00]} 6. cxd4 {[%clk 0:03:01]}  Bg7 {[%clk 0:03:01]} 7. Nc3 {[%clk 0:03:01]}  O-O {[%clk 0:03:02]} 8. Be2 {[%clk 0:03:01]}  Nc6 {[%clk 0:03:02]} 9. O-O {[%clk 0:03:01]}  Bg4 {[%clk 0:03:02]} 10. Be3 {[%clk 0:02:58]}  Rc8 {[%clk 0:03:02]} 11. Qd2 {[%clk 0:02:56]}  Re8 {[%clk 0:02:43]} 12. h3 {[%clk 0:02:54]}  Bxf3 {[%clk 0:02:42]} 13. Bxf3 {[%clk 0:02:55]}  e5 {[%clk 0:02:42]} 14. d5 {[%clk 0:02:53]}  Na5 {[%clk 0:02:37]} 15. b3 {[%clk 0:02:52]}  b6 {[%clk 0:02:29]} 16. Rac1 {[%clk 0:02:51]}  Nb7 {[%clk 0:02:30]} 17. Nb5 {[%clk 0:02:47]}  a6 {[%clk 0:02:27]} 18. Na7 {[%clk 0:02:43]}  Rxc1 {[%clk 0:02:26]} 19. Rxc1 {[%clk 0:02:43]}  Nc5 {[%clk 0:02:27]} 20. Nc6 {[%clk 0:02:41]}  Qd7 {[%clk 0:02:24]} 21. Bxc5 {[%clk 0:02:33]}  bxc5 {[%clk 0:02:24]} 22. Qa5 {[%clk 0:02:32]}  Qb7 {[%clk 0:02:23]} 23. Rc4 {[%clk 0:02:27]}  Nd7 {[%clk 0:02:19]} 24. Ra4 {[%clk 0:02:22]}  Ra8 {[%clk 0:02:19]} 25. Be2 {[%clk 0:02:22]}  Nb6 {[%clk 0:02:18]} 26. Ra3 {[%clk 0:02:20]}  f5 {[%clk 0:02:11]} 27. f3 {[%clk 0:02:16]}  fxe4 {[%clk 0:02:07]} 28. fxe4 {[%clk 0:02:16]}  Bh6 {[%clk 0:02:08]} 29. Bxa6 {[%clk 0:02:14]}  Be3+ {[%clk 0:02:05]} 30. Kh1 {[%clk 0:02:08]}  Qf7 {[%clk 0:02:04]} 31. Qxb6 {[%clk 0:02:03]}  Qf2 {[%clk 0:01:54]} 32. Ne7+ {[%clk 0:01:56]}  Kf7 {[%clk 0:01:51]} 33. Nxg6 {[%clk 0:01:36]}  Qg1# {[%clk 0:01:47]} 0-1


[Site "https://www.chess.com"]

[Event "Titled Tuesday Blitz April 26 Early 2022"]
[White "Andrews, Todd"]
[Black "Nazari, Arad"]
[WhiteFideId "2012456"]
[BlackFideId "12577324"]
[WhiteElo "2354"]
[BlackElo "2129"]
[Result "0-1"]
[Round "02"]
[TimeControl "180+1"]
[Date "2022.04.26"]
[WhiteClock "0:01:57"]
[BlackClock "0:02:21"]

1. d4 {[%clk 0:03:00]}  Nf6 {[%clk 0:02:51]} 2. c4 {[%clk 0:03:00]}  g6 {[%clk 0:02:51]} 3. Nc3 {[%clk 0:03:00]}  d5 {[%clk 0:02:52]} 4. Bf4 {[%clk 0:02:59]}  Bg7 {[%clk 0:02:51]} 5. Rc1 {[%clk 0:02:59]}  O-O {[%clk 0:02:49]} 6. e3 {[%clk 0:02:59]}  c5 {[%clk 0:02:49]} 7. dxc5 {[%clk 0:02:59]}  dxc4 {[%clk 0:02:47]} 8. Qxd8 {[%clk 0:02:57]}  Rxd8 {[%clk 0:02:47]} 9. Bxc4 {[%clk 0:02:57]}  Nbd7 {[%clk 0:02:46]} 10. c6 {[%clk 0:02:57]}  bxc6 {[%clk 0:02:46]} 11. Nf3 {[%clk 0:02:57]}  Nb6 {[%clk 0:02:45]} 12. Bb3 {[%clk 0:02:54]}  Ba6 {[%clk 0:02:45]} 13. Nd4 {[%clk 0:02:43]}  Rac8 {[%clk 0:02:41]} 14. f3 {[%clk 0:02:38]}  Nfd5 {[%clk 0:02:40]} 15. Nxd5 {[%clk 0:02:26]}  cxd5 {[%clk 0:02:38]} 16. Kf2 {[%clk 0:02:16]}  e5 {[%clk 0:02:34]} 17. Nc6 {[%clk 0:02:03]}  exf4 {[%clk 0:02:34]} 18. Nxd8 {[%clk 0:02:03]}  fxe3+ {[%clk 0:02:33]} 19. Kxe3 {[%clk 0:02:03]}  Rxd8 {[%clk 0:02:30]} 20. Rc7 {[%clk 0:02:03]}  Re8+ {[%clk 0:02:23]} 21. Kf2 {[%clk 0:02:02]}  Bd4+ {[%clk 0:02:22]} 22. Kg3 {[%clk 0:01:57]}  Be5+ {[%clk 0:02:21]} 0-1


[Site "https://www.chess.com"]

[Event "Titled Tuesday Blitz April 26 Early 2022"]
[White "Atanasov, Anthony"]
[Black "Lopez, Henry"]
[WhiteFideId "2623897"]
[BlackFideId "5203830"]
[WhiteElo "1928"]
[BlackElo "2177"]
[Result "0-1"]
[Round "02"]
[TimeControl "180+1"]
[Date "2022.04.26"]
[WhiteClock "0:02:17"]
[BlackClock "0:01:48"]

1. d4 {[%clk 0:03:00]}  Nf6 {[%clk 0:02:58]} 2. Nf3 {[%clk 0:03:01]}  d5 {[%clk 0:02:58]} 3. Bf4 {[%clk 0:03:01]}  c5 {[%clk 0:02:58]} 4. e3 {[%clk 0:03:00]}  Nc6 {[%clk 0:02:58]} 5. Nbd2 {[%clk 0:03:00]}  Bf5 {[%clk 0:02:53]} 6. dxc5 {[%clk 0:03:00]}  e6 {[%clk 0:02:51]} 7. Nd4 {[%clk 0:03:00]}  Bg6 {[%clk 0:02:37]} 8. Bb5 {[%clk 0:03:00]}  Qc8 {[%clk 0:02:33]} 9. c4 {[%clk 0:02:57]}  Bxc5 {[%clk 0:02:28]} 10. cxd5 {[%clk 0:02:53]}  Nxd5 {[%clk 0:02:27]} 11. Rc1 {[%clk 0:02:49]}  Bxd4 {[%clk 0:02:23]} 12. Nc4 {[%clk 0:02:33]}  O-O {[%clk 0:02:21]} 13. Bxc6 {[%clk 0:02:31]}  Nxf4 {[%clk 0:02:02]} 14. Nd6 {[%clk 0:02:25]}  Nd3+ {[%clk 0:01:52]} 15. Qxd3 {[%clk 0:02:23]}  Bxd3 {[%clk 0:01:51]} 16. Nxc8 {[%clk 0:02:22]}  Raxc8 {[%clk 0:01:50]} 17. exd4 {[%clk 0:02:17]}  Rxc6 {[%clk 0:01:48]} 0-1


[Site "https://www.chess.com"]

[Event "Titled Tuesday Blitz April 26 Early 2022"]
[White "Avalos Parra, Joao"]
[Black "Piliczewski, Bogusz"]
[WhiteFideId "3402541"]
[BlackFideId "1104144"]
[WhiteElo "2173"]
[BlackElo "1896"]
[Result "1-0"]
[Round "02"]
[TimeControl "180+1"]
[Date "2022.04.26"]
[WhiteClock "0:00:35"]
[BlackClock "0:00:02"]

1. d4 {[%clk 0:03:00]}  d5 {[%clk 0:02:58]} 2. c4 {[%clk 0:02:59]}  c6 {[%clk 0:02:58]} 3. Nf3 {[%clk 0:02:59]}  Nf6 {[%clk 0:02:58]} 4. e3 {[%clk 0:02:59]}  e6 {[%clk 0:02:57]} 5. b3 {[%clk 0:02:59]}  Nbd7 {[%clk 0:02:57]} 6. Bb2 {[%clk 0:02:59]}  Bd6 {[%clk 0:02:58]} 7. Bd3 {[%clk 0:02:58]}  Qc7 {[%clk 0:02:56]} 8. O-O {[%clk 0:02:52]}  a6 {[%clk 0:02:49]} 9. Nbd2 {[%clk 0:02:52]}  O-O {[%clk 0:02:47]} 10. Re1 {[%clk 0:02:50]}  b5 {[%clk 0:02:18]} 11. e4 {[%clk 0:02:40]}  dxc4 {[%clk 0:02:14]} 12. bxc4 {[%clk 0:02:39]}  bxc4 {[%clk 0:02:10]} 13. Nxc4 {[%clk 0:02:38]}  Bb4 {[%clk 0:02:10]} 14. Re2 {[%clk 0:02:26]}  a5 {[%clk 0:02:00]} 15. Rc1 {[%clk 0:02:23]}  Ba6 {[%clk 0:01:57]} 16. a3 {[%clk 0:02:18]}  Be7 {[%clk 0:01:53]} 17. Rec2 {[%clk 0:02:16]}  Rfc8 {[%clk 0:01:32]} 18. Nce5 {[%clk 0:02:04]}  Nb8 {[%clk 0:01:20]} 19. Qe2 {[%clk 0:01:29]}  Bxd3 {[%clk 0:01:01]} 20. Qxd3 {[%clk 0:01:30]}  Bd6 {[%clk 0:01:01]} 21. Nxc6 {[%clk 0:00:53]}  Nxc6 {[%clk 0:01:00]} 22. d5 {[%clk 0:00:54]}  exd5 {[%clk 0:00:49]} 23. exd5 {[%clk 0:00:52]}  Nxd5 {[%clk 0:00:10]} 24. Qxd5 {[%clk 0:00:48]}  Qb6 {[%clk 0:00:06]} 25. Rxc6 {[%clk 0:00:41]}  Rxc6 {[%clk 0:00:03]} 26. Qxc6 {[%clk 0:00:36]}  Qxb2 {[%clk 0:00:02]} 27. Qxa8+ {[%clk 0:00:35]} 1-0


[Site "https://www.chess.com"]

[Event "Titled Tuesday Blitz April 26 Early 2022"]
[White "Avazkhonov, Alikhon"]
[Black "Molina, Roberto Junio Brito"]
[WhiteFideId "14208504"]
[BlackFideId "2109450"]
[WhiteElo "1739"]
[BlackElo "2432"]
[Result "1-0"]
[Round "02"]
[TimeControl "180+1"]
[Date "2022.04.26"]
[WhiteClock "0:00:09"]
[BlackClock "0:00:02"]

1. f4 {[%clk 0:03:00]}  d5 {[%clk 0:02:59]} 2. Nf3 {[%clk 0:03:01]}  g6 {[%clk 0:02:59]} 3. g3 {[%clk 0:03:01]}  Bg7 {[%clk 0:02:59]} 4. Bg2 {[%clk 0:03:02]}  Nf6 {[%clk 0:02:59]} 5. O-O {[%clk 0:03:02]}  O-O {[%clk 0:03:00]} 6. d3 {[%clk 0:03:03]}  c5 {[%clk 0:03:01]} 7. Qe1 {[%clk 0:03:03]}  Nc6 {[%clk 0:03:01]} 8. e4 {[%clk 0:03:04]}  dxe4 {[%clk 0:03:01]} 9. dxe4 {[%clk 0:03:05]}  e5 {[%clk 0:03:01]} 10. Nc3 {[%clk 0:03:05]}  Nd4 {[%clk 0:02:57]} 11. fxe5 {[%clk 0:02:59]}  Ng4 {[%clk 0:02:51]} 12. Nxd4 {[%clk 0:02:56]}  Qxd4+ {[%clk 0:02:47]} 13. Kh1 {[%clk 0:02:55]}  Be6 {[%clk 0:02:03]} 14. Nd5 {[%clk 0:02:34]}  Nxe5 {[%clk 0:01:44]} 15. c3 {[%clk 0:02:01]}  Qc4 {[%clk 0:01:39]} 16. Bg5 {[%clk 0:02:01]}  h6 {[%clk 0:01:29]} 17. Bf6 {[%clk 0:01:54]}  Bxd5 {[%clk 0:01:25]} 18. Bxg7 {[%clk 0:01:51]}  Kxg7 {[%clk 0:01:23]} 19. exd5 {[%clk 0:01:52]}  Rae8 {[%clk 0:01:22]} 20. Qf2 {[%clk 0:01:44]}  Ng4 {[%clk 0:01:11]} 21. Qf4 {[%clk 0:01:31]}  Qxf4 {[%clk 0:01:10]} 22. Rxf4 {[%clk 0:01:30]}  f5 {[%clk 0:01:08]} 23. d6 {[%clk 0:00:27]}  Rf7 {[%clk 0:01:02]} 24. Rd1 {[%clk 0:00:25]}  Rd8 {[%clk 0:00:59]} 25. h3 {[%clk 0:00:10]}  Ne3 {[%clk 0:00:56]} 26. Rd2 {[%clk 0:00:09]}  Nxg2 {[%clk 0:00:53]} 27. Kxg2 {[%clk 0:00:10]}  Rfd7 {[%clk 0:00:54]} 28. Ra4 {[%clk 0:00:06]}  Rxd6 {[%clk 0:00:45]} 29. Re2 {[%clk 0:00:06]}  Rd2 {[%clk 0:00:43]} 30. Kf3 {[%clk 0:00:04]}  Rxe2 {[%clk 0:00:34]} 31. Kxe2 {[%clk 0:00:05]}  a6 {[%clk 0:00:33]} 32. Rc4 {[%clk 0:00:05]}  Rd5 {[%clk 0:00:29]} 33. b4 {[%clk 0:00:04]}  b6 {[%clk 0:00:27]} 34. bxc5 {[%clk 0:00:04]}  Rxc5 {[%clk 0:00:27]} 35. Rxc5 {[%clk 0:00:04]}  bxc5 {[%clk 0:00:27]} 36. Kd3 {[%clk 0:00:04]}  Kf6 {[%clk 0:00:24]} 37. Kc4 {[%clk 0:00:05]}  Ke5 {[%clk 0:00:25]} 38. Kxc5 {[%clk 0:00:05]}  g5 {[%clk 0:00:25]} 39. Kc4 {[%clk 0:00:03]}  Ke4 {[%clk 0:00:25]} 40. Kb3 {[%clk 0:00:02]}  Kd3 {[%clk 0:00:15]} 41. c4 {[%clk 0:00:02]}  Kd4 {[%clk 0:00:16]} 42. Kb4 {[%clk 0:00:02]}  f4 {[%clk 0:00:14]} 43. gxf4 {[%clk 0:00:02]}  gxf4 {[%clk 0:00:14]} 44. c5 {[%clk 0:00:03]}  f3 {[%clk 0:00:15]} 45. c6 {[%clk 0:00:03]}  f2 {[%clk 0:00:16]} 46. c7 {[%clk 0:00:04]}  f1=Q {[%clk 0:00:15]} 47. c8=Q {[%clk 0:00:05]}  Qb5+ {[%clk 0:00:13]} 48. Ka3 {[%clk 0:00:05]}  Qd3+ {[%clk 0:00:10]} 49. Kb4 {[%clk 0:00:04]}  Qd2+ {[%clk 0:00:08]} 50. Kb3 {[%clk 0:00:04]}  Qe3+ {[%clk 0:00:07]} 51. Kb4 {[%clk 0:00:04]}  Qe1+ {[%clk 0:00:04]} 52. Kb3 {[%clk 0:00:04]}  Qg3+ {[%clk 0:00:03]} 53. Kb4 {[%clk 0:00:04]}  Qe1+ {[%clk 0:00:02]} 54. Kb3 {[%clk 0:00:04]}  Qe3+ {[%clk 0:00:03]} 55. Kb4 {[%clk 0:00:05]}  Qd2+ {[%clk 0:00:03]} 56. Kb3 {[%clk 0:00:05]}  Qd3+ {[%clk 0:00:04]} 57. Kb4 {[%clk 0:00:05]}  Qb5+ {[%clk 0:00:05]} 58. Ka3 {[%clk 0:00:06]}  Qc5+ {[%clk 0:00:05]} 59. Qxc5+ {[%clk 0:00:05]}  Kxc5 {[%clk 0:00:05]} 60. Ka4 {[%clk 0:00:05]}  Kb6 {[%clk 0:00:06]} 61. Kb4 {[%clk 0:00:06]}  a5+ {[%clk 0:00:03]} 62. Kc4 {[%clk 0:00:06]}  Kc6 {[%clk 0:00:03]} 63. a4 {[%clk 0:00:06]}  h5 {[%clk 0:00:04]} 64. h4 {[%clk 0:00:06]}  Kb6 {[%clk 0:00:03]} 65. Kd5 {[%clk 0:00:07]}  Kc7 {[%clk 0:00:03]} 66. Kc5 {[%clk 0:00:07]}  Kb7 {[%clk 0:00:01]} 67. Kb5 {[%clk 0:00:08]}  Kc7 {[%clk 0:00:01]} 68. Kxa5 {[%clk 0:00:09]}  Kd6 {[%clk 0:00:02]} 69. Kb6 {[%clk 0:00:09]} 1-0


[Site "https://www.chess.com"]